bitfinex/quotes_SOLUSD_20240703
["timestamp","ask_amount","ask_price","bid_price","bid_amount"]
[1720012695792,0.28639129,143.52,143.42,42.36496256]
[1720012696101,0.28639129,143.52,143.42,36.8]
[1720012699903,0.28639129,143.52,143.43,31.5637557]
[1720012700082,0.28639129,143.52,143.43,30.17]
[1720012700604,0.28639129,143.52,143.43,30.0]
[1720012700987,0.28639129,143.52,143.42,36.8]
[1720012704886,6.2742,143.51,143.42,36.8]
[1720012705087,6.2742,143.49,143.36,36.8]
[1720012705319,0.17,143.48,143.38,30.0]
[1720012705626,6.2742,143.49,143.39,0.35792784]
[1720012706004,6.2742,143.49,143.38,30.0]
[1720012709039,0.29631265,143.48,143.38,30.0]
[1720012711208,0.29631265,143.48,143.39,0.17]
[1720012711537,0.29631265,143.48,143.39,30.0]
[1720012712452,0.29631265,143.48,143.37,30.0]
[1720012713910,0.29631265,143.48,143.37,130.0]
[1720012714114,0.29631265,143.48,143.38,1.04058615]
[1720012714314,0.29631265,143.48,143.4,36.8]
[1720012714519,6.2742,143.49,143.4,36.8]
[1720012714914,6.2119,143.57,143.46,21.04]
[1720012715117,6.2119,143.57,143.41,121.2712]
[1720012715118,6.2119,143.61,143.51,36.8]
[1720012715328,6.2119,143.61,143.52,0.17]
[1720012715501,6.2119,143.61,143.55,36.8]
[1720012715707,6.2119,143.61,143.52,7.63730406]
[1720012715909,6.2119,143.61,143.59,32.66]
[1720012716503,6.2119,143.61,143.52,7.46730406]
[1720012716705,6.2119,143.61,143.51,5.6409358]
[1720012717008,6.2119,143.61,143.55,32.66]
[1720012717696,6.2119,143.61,143.51,36.75]
[1720012723528,6.2119,143.61,143.55,36.75]
[1720012723704,0.833238,143.64,143.56,42.5593]
[1720012723906,7.25619314,143.72,143.62,36.75]
[1720012724147,6.2757,143.74,143.62,36.75]
[1720012725842,6.2757,143.74,143.57,36.92]
[1720012726040,20.0,143.73,143.57,36.92]
[1720012726335,20.0,143.73,143.57,36.75]
[1720012726706,0.34,143.72,143.57,36.75]
[1720012727136,6.6078,143.71,143.57,36.75]
[1720012727309,20.34,143.7,143.57,36.75]
[1720012728125,6.6078,143.69,143.57,36.75]
[1720012728416,6.3854,143.67,143.5,36.75]
[1720012728623,20.34,143.66,143.5,36.75]
[1720012729630,6.3072,143.65,143.5,36.75]
[1720012729842,0.34,143.64,143.5,36.75]
[1720012730138,20.34,143.64,143.5,36.75]
[1720012731222,20.34,143.64,143.5,42.33068438]
[1720012737541,6.2913,143.63,143.5,42.33068438]
[1720012737748,20.17,143.62,143.5,42.33068438]
[1720012740339,6.3627,143.61,143.5,42.33068438]
[1720012740641,0.17,143.6,143.5,42.33068438]
[1720012741555,6.1927,143.61,143.5,42.33068438]
[1720012741718,6.1927,143.61,143.55,32.67]
[1720012744049,6.1927,143.61,143.52,32.67]
[1720012744225,0.17,143.6,143.52,32.67]
[1720012744732,20.34,143.6,143.46,16.1639]
[1720012745037,20.34,143.6,143.51,32.67]
[1720012745543,20.17,143.6,143.52,1.3932754]
[1720012746144,6.1927,143.61,143.54,32.67]
[1720012746519,6.1927,143.61,143.55,1.39270872]
[1720012746720,6.1927,143.61,143.54,32.67]
[1720012747251,20.0,143.6,143.54,32.67]
[1720012747830,20.0,143.6,143.48,36.76]
[1720012748045,20.0,143.6,143.48,43.65285962]
[1720012748340,20.0,143.6,143.49,6.89285962]
[1720012749132,20.0,143.6,143.48,36.76]
[1720012749343,0.17,143.59,143.48,36.76]
[1720012749844,20.0,143.6,143.48,36.76]
[1720012752135,20.0,143.6,143.49,30.0]
[1720012753451,6.1927,143.61,143.49,30.0]
[1720012753746,6.1927,143.61,143.49,36.89285962]
[1720012753967,6.1927,143.61,143.52,36.76]
[1720012754130,6.1927,143.61,143.56,36.76]
[1720012754551,6.3897,143.72,143.56,36.76]
[1720012754854,6.3897,143.72,143.57,1.39243645]
[1720012755419,6.4652,143.7,143.57,1.39243645]
[1720012757227,6.4652,143.7,143.57,21.39243645]
[1720012757449,6.4652,143.7,143.57,20.0]
[1720012757949,6.4652,143.7,143.56,36.76]
[1720012758151,6.1363,143.68,143.57,30.0]
[1720012758459,6.1363,143.66,143.5,152.501]
[1720012758633,6.1363,143.66,143.51,20.0]
[1720012758837,6.2629,143.64,143.5,52.501]
[1720012759239,6.2629,143.64,143.51,30.0]
[1720012759240,0.17,143.63,143.51,30.0]
[1720012759927,20.17,143.63,143.51,30.0]
[1720012760123,6.0729,143.62,143.51,30.0]
[1720012761861,6.0729,143.62,143.52,0.17]
[1720012762168,6.0729,143.62,143.52,50.17]
[1720012763230,6.0729,143.62,143.52,150.17]
[1720012763753,6.0729,143.62,143.52,50.17]
[1720012764341,5.5729,143.62,143.52,50.17]
[1720012764526,5.5729,143.62,143.54,36.76]
[1720012769255,5.5729,143.62,143.5,42.41843955]
[1720012769468,5.5729,143.62,143.51,30.0]
[1720012769783,5.5729,143.62,143.52,32.68]
[1720012771261,5.0729,143.62,143.52,32.68]
[1720012772096,0.17,143.61,143.52,32.68]
[1720012772251,20.17,143.61,143.52,32.68]
[1720012775957,20.0,143.61,143.52,32.68]
[1720012778278,0.17,143.6,143.52,32.68]
[1720012781352,0.17,143.6,143.5,5.65843955]
[1720012781553,0.17,143.6,143.52,32.68]
[1720012782181,5.0729,143.62,143.52,32.68]
[1720012782475,5.0729,143.62,143.55,32.68]
[1720012782778,5.0729,143.62,143.56,1.39070662]
[1720012783282,5.0729,143.62,143.55,32.68]
[1720012784756,5.0729,143.62,143.5,39.19080406]
[1720012784757,0.17,143.61,143.5,39.19080406]
[1720012785061,0.17,143.61,143.53,32.68]
[1720012785384,5.0729,143.62,143.56,32.68]
[1720012790572,64.92551879,143.7,143.59,32.68]
[1720012790573,13.43391879,143.7,143.59,32.68]
[1720012790758,13.43391879,143.7,143.62,32.68]
[1720012790759,6.1884,143.7,143.62,32.68]
[1720012791689,6.1884,143.7,143.63,0.63942256]
[1720012792795,6.1884,143.7,143.62,32.68]
[1720012795997,0.17,143.69,143.54,21.50584987]
[1720012796165,0.17,143.69,143.59,32.68]
[1720012798478,0.17,143.69,143.55,30.0]
[1720012798677,0.17,143.69,143.6,32.68]
[1720012798898,0.34,143.69,143.6,32.68]
[1720012799386,0.17,143.69,143.6,32.68]
[1720012799763,6.1884,143.7,143.6,32.68]
[1720012800693,0.17,143.69,143.6,32.68]
[1720012802558,6.1884,143.7,143.6,32.68]
[1720012802900,6.1884,143.7,143.63,32.68]
[1720012806790,6.1884,143.7,143.63,32.68]
[1720012810505,6.1884,143.7,143.62,32.68]
[1720012812194,6.1884,143.7,143.65,32.68]
[1720012815594,5.6884,143.7,143.65,32.68]
[1720012816181,5.6884,143.7,143.62,32.68]
[1720012817993,0.17,143.69,143.57,5.69607707]
[1720012818196,0.17,143.69,143.6,32.68]
[1720012820475,5.6884,143.7,143.6,32.68]
[1720012820878,0.17,143.69,143.6,32.68]
[1720012821799,0.17,143.69,143.66,16.32]
[1720012822121,0.17,143.69,143.65,16.32]
[1720012823172,5.6884,143.7,143.67,16.32]
[1720012823782,5.6884,143.7,143.57,65.28]
[1720012823978,5.6884,143.7,143.66,16.32]
[1720012824909,5.6884,143.7,143.58,30.0]
[1720012825114,0.17,143.69,143.58,30.0]
[1720012825293,0.17,143.69,143.65,16.32]
[1720012826213,0.34,143.69,143.65,16.32]
[1720012826910,5.6884,143.7,143.57,65.28]
[1720012827078,5.6884,143.7,143.67,16.32]
[1720012829091,5.6884,143.7,143.57,65.28]
[1720012829397,5.6884,143.7,143.65,16.32]
[1720012829398,0.17,143.69,143.65,16.32]
[1720012829791,5.6884,143.7,143.58,30.0]
[1720012829989,5.6884,143.7,143.66,16.32]
[1720012830182,6.3253,143.74,143.64,16.32]
[1720012830383,6.3253,143.74,143.69,16.32]
[1720012831487,22.6453,143.74,143.69,16.32]
[1720012831985,22.6453,143.74,143.61,15.1875]
[1720012832296,0.17,143.73,143.69,16.32]
[1720012832689,0.17,143.73,143.62,30.0]
[1720012832906,0.17,143.73,143.69,16.32]
[1720012833214,16.49,143.73,143.68,16.32]
[1720012833585,6.3253,143.74,143.7,16.32]
[1720012834513,6.3253,143.74,143.71,16.32]
[1720012834809,6.3253,143.74,143.7,16.32]
[1720012835010,16.32,143.71,143.62,30.0]
[1720012835186,16.32,143.72,143.67,16.32]
[1720012835380,0.17,143.73,143.67,16.32]
[1720012835595,20.34,143.73,143.67,16.32]
[1720012836000,16.32,143.72,143.67,16.32]
[1720012836195,0.17,143.71,143.67,16.32]
[1720012836983,20.17,143.73,143.67,16.32]
[1720012837190,0.17,143.72,143.68,16.32]
[1720012839595,0.17,143.72,143.64,16.32]
[1720012839596,16.49,143.72,143.64,16.32]
[1720012839813,16.32,143.71,143.66,16.32]
[1720012840114,0.17,143.7,143.66,16.32]
[1720012840291,16.32,143.71,143.66,16.32]
[1720012840693,16.32,143.71,143.61,15.1875]
[1720012840694,0.17,143.7,143.61,15.1875]
[1720012840995,16.49,143.7,143.65,16.32]
[1720012842124,0.17,143.7,143.66,16.32]
[1720012842515,0.17,143.7,143.59,6.0601]
[1720012842516,16.49,143.7,143.59,6.0601]
[1720012842826,16.49,143.69,143.64,16.32]
[1720012843118,0.17,143.68,143.64,16.32]
[1720012848613,16.32,143.7,143.65,16.32]
[1720012848813,0.17,143.69,143.65,16.32]
[1720012849319,0.17,143.69,143.66,16.32]
[1720012849634,20.0,143.73,143.66,16.32]
[1720012849831,20.0,143.73,143.58,30.0]
[1720012849832,16.32,143.72,143.67,16.32]
[1720012850035,16.32,143.71,143.67,16.32]
[1720012850608,20.0,143.73,143.68,16.32]
[1720012850815,20.0,143.73,143.58,30.0]
[1720012850816,16.32,143.72,143.67,16.32]
[1720012851042,16.32,143.71,143.67,16.32]
[1720012851415,6.3253,143.74,143.68,16.32]
[1720012851640,16.32,143.72,143.68,16.32]
[1720012851937,16.32,143.72,143.67,16.32]
[1720012852147,16.32,143.72,143.64,16.32]
[1720012852435,16.32,143.72,143.67,16.32]
[1720012853754,0.17,143.73,143.67,16.32]
[1720012853926,16.32,143.72,143.68,16.32]
[1720012854512,16.32,143.72,143.67,16.32]
[1720012854932,16.32,143.71,143.58,30.0]
[1720012855125,16.32,143.71,143.67,16.32]
[1720012855338,16.32,143.71,143.66,16.32]
[1720012855646,16.49,143.7,143.58,30.0]
[1720012855824,16.49,143.69,143.58,30.0]
[1720012856013,0.17,143.68,143.58,30.0]
[1720012856214,0.17,143.68,143.64,16.32]
[1720012857115,0.17,143.68,143.58,30.0]
[1720012857313,16.49,143.68,143.58,30.0]
[1720012857533,0.17,143.68,143.64,16.32]
[1720012858131,0.17,143.68,143.65,16.32]
[1720012858336,16.32,143.7,143.65,16.32]
[1720012858513,0.17,143.69,143.65,16.32]
[1720012860046,0.17,143.69,143.66,16.32]
[1720012860549,20.17,143.7,143.66,16.32]
[1720012860720,36.49,143.7,143.57,21.58980908]
[1720012860922,36.49,143.7,143.65,16.32]
[1720012861116,36.49,143.7,143.57,21.58980908]
[1720012861325,36.49,143.7,143.65,16.32]
[1720012861853,36.49,143.7,143.57,86.86980908]
[1720012861854,16.32,143.69,143.57,86.86980908]
[1720012862034,0.17,143.68,143.64,16.32]
[1720012862227,36.49,143.7,143.65,16.32]
[1720012862429,20.17,143.7,143.66,16.32]
[1720012862732,16.49,143.7,143.65,16.32]
[1720012863541,22.4306,143.68,143.57,16.0437]
[1720012863855,16.66,143.67,143.57,81.3237]
[1720012864143,16.66,143.67,143.62,16.32]
[1720012865050,0.34,143.67,143.57,16.0437]
[1720012865221,0.34,143.67,143.58,16.32]
[1720012865222,16.32,143.64,143.58,16.32]
[1720012865546,6.0399,143.63,143.58,16.32]
[1720012865750,16.32,143.61,143.56,16.32]
[1720012865950,0.17,143.62,143.56,16.32]
[1720012866150,36.49,143.62,143.56,16.32]
[1720012866530,36.49,143.62,143.5,70.98832758]
[1720012866743,16.49,143.61,143.56,16.32]
[1720012867038,16.49,143.61,143.55,16.32]
[1720012867039,0.17,143.6,143.55,16.32]
[1720012868340,20.0,143.62,143.58,16.32]
[1720012868658,0.17,143.61,143.58,16.32]
[1720012869050,0.17,143.61,143.57,16.32]
[1720012869692,0.17,143.61,143.5,65.28]
[1720012869961,6.4718,143.68,143.59,16.32]
[1720012870265,6.4718,143.68,143.62,16.32]
[1720012870435,6.4718,143.68,143.56,15.177]
[1720012870436,16.32,143.67,143.56,15.177]
[1720012870637,16.32,143.66,143.56,15.177]
[1720012870857,16.32,143.65,143.57,16.32]
[1720012871164,16.32,143.65,143.6,16.32]
[1720012871343,6.4718,143.68,143.6,16.32]
[1720012871542,16.32,143.66,143.6,16.32]
[1720012872358,0.17,143.67,143.62,16.32]
[1720012872669,36.32,143.67,143.62,16.32]
[1720012872965,16.32,143.66,143.61,16.32]
[1720012873262,16.32,143.65,143.57,16.32]
[1720012873480,16.32,143.65,143.6,16.32]
[1720012873649,20.0,143.67,143.61,16.32]
[1720012873836,16.32,143.65,143.56,15.177]
[1720012874036,0.17,143.66,143.6,16.32]
[1720012874248,20.0,143.67,143.61,16.32]
[1720012874469,16.32,143.66,143.61,16.32]
[1720012875143,16.32,143.66,143.56,15.177]
[1720012875440,16.66,143.65,143.6,16.32]
[1720012876572,16.32,143.64,143.52,16.0541]
[1720012876741,16.66,143.63,143.58,16.32]
[1720012877138,16.66,143.63,143.57,16.32]
[1720012877351,16.32,143.62,143.52,16.0541]
[1720012877568,0.17,143.61,143.57,16.32]
[1720012878148,0.17,143.62,143.56,16.32]
[1720012878347,0.17,143.62,143.52,16.0541]
[1720012878348,16.32,143.61,143.57,16.32]
[1720012878561,16.49,143.62,143.57,16.32]
[1720012878759,0.17,143.62,143.57,16.32]
[1720012878950,0.17,143.62,143.52,16.0541]
[1720012878951,16.49,143.62,143.52,16.0541]
[1720012879149,22.9267,143.61,143.55,16.32]
[1720012879372,0.17,143.6,143.56,16.32]
[1720012880048,6.4367,143.61,143.57,16.32]
[1720012880246,0.17,143.62,143.57,16.32]
[1720012880441,20.17,143.62,143.57,16.32]
[1720012882382,36.49,143.62,143.52,16.0541]
[1720012882762,16.32,143.61,143.52,16.0541]
[1720012883088,36.49,143.62,143.56,16.32]
[1720012883376,36.49,143.62,143.52,16.0541]
[1720012883377,16.49,143.62,143.57,16.32]
[1720012883591,16.49,143.62,143.56,16.32]
[1720012884380,16.49,143.62,143.57,16.32]
[1720012887112,16.49,143.62,143.56,16.32]
[1720012887380,0.17,143.62,143.58,16.32]
[1720012887963,16.49,143.62,143.57,16.32]
[1720012889070,16.49,143.62,143.56,16.32]
[1720012889390,16.32,143.61,143.56,16.32]
[1720012890075,16.32,143.61,143.52,16.0541]
[1720012890076,0.17,143.62,143.52,16.0541]
[1720012890257,16.32,143.59,143.53,16.32]
[1720012890566,20.17,143.6,143.54,1.38973871]
[1720012890780,20.0,143.6,143.56,16.32]
[1720012890957,20.0,143.61,143.56,16.32]
[1720012891161,36.32,143.61,143.55,16.32]
[1720012891384,20.0,143.61,143.57,16.32]
[1720012891590,16.49,143.62,143.57,16.32]
[1720012891769,6.4288,143.64,143.58,16.32]
[1720012891969,6.4288,143.64,143.5,65.28]
[1720012891970,0.17,143.63,143.61,16.32]
[1720012893587,0.17,143.63,143.57,16.32]
[1720012893588,6.4288,143.64,143.62,16.32]
[1720012894583,6.4288,143.64,143.61,16.32]
[1720012895271,0.17,143.63,143.61,16.32]
[1720012895674,13.41794756,143.67,143.61,16.32]
[1720012895876,20.0,143.66,143.62,16.32]
[1720012896086,20.0,143.66,143.63,16.32]
[1720012896390,20.0,143.66,143.54,15.8042]
[1720012896574,20.0,143.66,143.62,16.32]
[1720012896770,20.0,143.66,143.61,16.32]
[1720012896967,0.34,143.65,143.61,16.32]
[1720012897178,0.34,143.65,143.54,15.8042]
[1720012897403,0.34,143.65,143.61,16.32]
[1720012898181,0.17,143.65,143.61,16.32]
[1720012898398,0.17,143.65,143.63,16.32]
[1720012898597,6.5411,143.67,143.64,16.32]
[1720012898894,6.5411,143.67,143.65,16.32]
[1720012899072,6.87684756,143.72,143.65,16.32]
[1720012899073,16.32,143.7,143.65,16.32]
[1720012899987,13.51416429,143.71,143.65,16.32]
[1720012900165,16.32,143.7,143.65,16.32]
[1720012900373,0.17,143.69,143.65,16.32]
[1720012900613,0.17,143.69,143.66,16.32]
[1720012900892,22.5773,143.71,143.66,16.32]
[1720012901192,20.0,143.7,143.66,16.32]
[1720012901496,20.0,143.7,143.64,16.32]
[1720012901795,16.32,143.68,143.64,16.32]
[1720012902096,16.32,143.68,143.63,16.32]
[1720012903588,20.0,143.7,143.63,16.32]
[1720012903772,16.32,143.68,143.63,16.32]
[1720012905576,14.12722788,143.72,143.65,16.32]
[1720012905784,16.32,143.71,143.67,16.32]
[1720012905977,16.32,143.72,143.67,16.32]
[1720012906172,16.32,143.71,143.66,16.32]
[1720012906693,16.32,143.7,143.65,16.32]
[1720012907482,16.32,143.7,143.6,15.2518]
[1720012907795,16.32,143.7,143.65,16.32]
[1720012908174,0.17,143.71,143.65,16.32]
[1720012908404,16.32,143.7,143.65,16.32]
[1720012908617,16.32,143.71,143.67,16.32]
[1720012908774,6.4569,143.75,143.66,16.32]
[1720012908978,16.32,143.71,143.66,16.32]
[1720012909607,16.32,143.71,143.6,15.2518]
[1720012910103,16.32,143.69,143.6,15.2518]
[1720012910283,16.32,143.68,143.6,15.2518]
[1720012910598,16.32,143.68,143.63,16.32]
[1720012911095,16.32,143.69,143.64,16.32]
[1720012911995,0.17,143.7,143.6,15.2518]
[1720012912234,16.32,143.67,143.6,15.2518]
[1720012912380,0.17,143.66,143.6,15.2518]
[1720012912581,0.17,143.66,143.61,1.39254411]
[1720012912890,6.0628,143.73,143.6,15.2518]
[1720012913089,16.32,143.7,143.65,16.32]
[1720012913489,16.32,143.7,143.6,15.2518]
[1720012913687,16.32,143.7,143.65,16.32]
[1720012913886,16.32,143.69,143.65,16.32]
[1720012914291,0.17,143.7,143.66,16.32]
[1720012914493,16.32,143.7,143.66,16.32]
[1720012914680,16.32,143.7,143.65,16.32]
[1720012916402,16.32,143.68,143.6,15.2518]
[1720012916607,16.66,143.71,143.62,16.32]
[1720012916608,16.32,143.67,143.62,16.32]
[1720012917220,16.32,143.68,143.63,16.32]
[1720012918623,16.49,143.69,143.64,16.32]
[1720012919201,16.49,143.69,143.63,16.32]
[1720012919202,16.32,143.68,143.63,16.32]
[1720012919597,0.17,143.69,143.63,16.32]
[1720012919836,20.17,143.7,143.63,16.32]
[1720012920037,16.32,143.68,143.63,16.32]
[1720012920817,20.17,143.7,143.6,15.2518]
[1720012920818,0.34,143.67,143.6,15.2518]
[1720012921002,16.32,143.66,143.61,16.32]
[1720012921214,16.32,143.66,143.6,15.2518]
[1720012921215,16.49,143.67,143.62,16.32]
[1720012922200,16.32,143.66,143.61,16.32]
[1720012923032,16.32,143.65,143.56,15.4099]
[1720012923224,16.49,143.64,143.59,16.32]
[1720012923421,16.32,143.64,143.59,16.32]
[1720012923626,0.17,143.63,143.59,16.32]
[1720012924222,16.49,143.66,143.61,16.32]
[1720012924431,23.1374,143.67,143.62,16.32]
[1720012924733,20.17,143.66,143.62,16.32]
[1720012924923,36.49,143.66,143.61,16.32]
[1720012925126,16.49,143.66,143.56,15.4099]
[1720012925431,16.49,143.66,143.61,16.32]
[1720012926307,16.49,143.66,143.56,15.4099]
[1720012926504,16.32,143.65,143.56,15.4099]
[1720012926708,0.17,143.64,143.6,16.32]
[1720012927318,16.32,143.65,143.6,16.32]
[1720012927527,16.49,143.64,143.56,15.4099]
[1720012927833,0.17,143.64,143.59,16.32]
[1720012928017,0.17,143.64,143.6,16.32]
[1720012928413,0.17,143.64,143.59,16.32]
[1720012928720,0.17,143.64,143.56,15.4099]
[1720012928922,0.34,143.64,143.59,16.32]
[1720012929108,0.17,143.64,143.59,16.32]
[1720012929308,0.34,143.64,143.56,15.4099]
[1720012929503,0.34,143.64,143.6,16.32]
[1720012929504,0.17,143.64,143.6,16.32]
[1720012930548,20.0,143.66,143.57,17.71270679]
[1720012930749,36.32,143.66,143.61,16.32]
[1720012931116,36.32,143.66,143.57,16.32]
[1720012931117,16.32,143.65,143.57,65.28]
[1720012931311,16.32,143.65,143.6,16.32]
[1720012932216,0.17,143.64,143.56,15.4099]
[1720012932416,16.66,143.64,143.59,16.32]
[1720012932815,20.0,143.66,143.56,15.4099]
[1720012932816,20.0,143.66,143.6,16.32]
[1720012933015,36.32,143.66,143.61,17.71247759]
[1720012933217,7.2437663,143.69,143.63,16.32]
[1720012933432,6.5096,143.7,143.63,16.32]
[1720012933433,36.32,143.68,143.63,16.32]
[1720012933736,16.32,143.68,143.63,16.32]
[1720012935241,16.32,143.67,143.62,16.32]
[1720012935436,16.32,143.68,143.63,16.32]
[1720012936424,16.32,143.67,143.56,15.4099]
[1720012936743,16.49,143.66,143.61,16.32]
[1720012936927,16.49,143.66,143.57,65.28]
[1720012937126,16.49,143.66,143.61,16.32]
[1720012937830,16.49,143.66,143.56,15.4099]
[1720012937831,0.17,143.66,143.56,15.4099]
[1720012938035,7.2452436,143.71,143.53,5.57688267]
[1720012938036,7.2452436,143.71,143.65,16.32]
[1720012938228,16.32,143.7,143.65,16.32]
[1720012938413,16.32,143.69,143.58,21.2636]
[1720012938621,16.32,143.67,143.62,16.32]
[1720012938820,16.32,143.67,143.58,21.2636]
[1720012938821,16.32,143.67,143.61,16.32]
[1720012939431,16.32,143.66,143.61,16.32]
[1720012940944,13.67442956,143.74,143.65,16.32]
[1720012941144,6.4304,143.74,143.66,17.71148895]
[1720012941317,16.32,143.71,143.66,17.71148895]
[1720012941523,16.32,143.71,143.66,16.32]
[1720012941822,16.32,143.7,143.66,16.32]
[1720012942143,16.32,143.7,143.65,16.32]
[1720012942511,16.32,143.69,143.65,16.32]
[1720012943134,6.4304,143.74,143.65,16.67129353]
[1720012943338,16.32,143.7,143.65,16.67129353]
[1720012943519,16.32,143.7,143.65,16.32]
[1720012944139,0.17,143.73,143.66,16.32]
[1720012944316,16.32,143.71,143.66,16.32]
[1720012945513,0.34,143.73,143.66,16.32]
[1720012945738,16.32,143.71,143.66,16.32]
[1720012946141,16.32,143.7,143.64,16.0814]
[1720012946451,20.34,143.73,143.64,16.0814]
[1720012946452,16.32,143.68,143.64,16.0814]
[1720012946659,16.32,143.69,143.64,32.4014]
[1720012946944,16.32,143.73,143.68,16.32]
[1720012947149,7.24531668,143.76,143.68,16.32]
[1720012947313,16.32,143.73,143.68,16.32]
[1720012947518,72.547338,143.78,143.64,22.4281]
[1720012947744,33.38142697,143.77,143.64,38.7481]
[1720012947921,16.32,143.75,143.7,16.32]
[1720012948118,33.38142697,143.77,143.64,87.7081]
[1720012948119,16.32,143.74,143.69,16.32]
[1720012950332,16.32,143.77,143.72,16.32]
[1720012950720,7.267338,143.78,143.72,16.32]
[1720012950920,16.32,143.77,143.72,16.32]
[1720012951354,7.267338,143.78,143.73,16.32]
[1720012951355,23.587338,143.78,143.73,16.32]
[1720012952220,0.17,143.77,143.73,16.32]
[1720012953037,23.587338,143.78,143.75,16.32]
[1720012953038,0.833238,143.78,143.75,16.32]
[1720012953621,0.833238,143.78,143.71,16.3416]
[1720012953822,0.833238,143.78,143.74,16.32]
[1720012954047,17.153238,143.78,143.73,16.32]
[1720012954234,0.833238,143.78,143.74,16.32]
[1720012954634,0.833238,143.78,143.71,32.6616]
[1720012954833,0.833238,143.78,143.73,16.32]
[1720012955254,0.833238,143.78,143.68,16.6208]
[1720012955255,16.32,143.75,143.68,16.6208]
[1720012955430,16.32,143.74,143.69,16.32]
[1720012955832,0.17,143.75,143.69,16.32]
[1720012956241,0.17,143.76,143.69,16.32]
[1720012956559,16.32,143.75,143.7,16.32]
[1720012956733,0.17,143.74,143.7,16.32]
[1720012956936,20.17,143.77,143.68,16.6208]
[1720012957140,16.32,143.75,143.7,16.32]
[1720012957357,20.17,143.76,143.62,16.0252]
[1720012957358,16.32,143.72,143.62,16.0252]
[1720012957658,26.3676,143.74,143.65,16.32]
[1720012957659,16.49,143.71,143.65,16.32]
[1720012957861,0.17,143.7,143.65,16.32]
[1720012958361,16.49,143.71,143.65,16.32]
[1720012959059,16.49,143.71,143.66,16.32]
[1720012959357,0.17,143.71,143.66,16.32]
[1720012959657,72.730938,143.78,143.69,16.32]
[1720012959875,16.32,143.74,143.69,16.32]
[1720012960153,16.32,143.74,143.68,16.32]
[1720012960154,0.17,143.73,143.68,16.32]
[1720012960540,72.730938,143.78,143.69,16.32]
[1720012960746,7.450938,143.78,143.7,16.32]